bitfinex-derivatives/quotes_BNBF0:USTF0_20260114
["timestamp","ask_amount","ask_price","bid_price","bid_amount"]
[1768405671375,0.77295283,940.4,939.05,2.6442507]
[1768405671571,1.605,940.56,939.05,2.6442507]
[1768405671774,0.77292689,940.55,939.05,2.6442507]
[1768405672071,0.77292689,940.54,939.05,2.6442507]
[1768405672272,0.77292689,940.53,939.04,2.6442507]
[1768405672575,0.77292689,940.52,939.04,2.6442507]
[1768405672771,0.77292689,940.51,939.04,2.6442507]
[1768405672972,0.77292689,940.5,939.04,2.6442507]
[1768405673172,0.77292689,940.49,939.04,2.6442507]
[1768405673375,0.77292689,940.48,939.04,2.6442507]
[1768405673576,0.77292689,940.47,939.04,2.6442507]
[1768405673776,0.77292689,940.46,939.04,2.6442507]
[1768405673972,0.77292689,940.45,939.04,2.6442507]
[1768405674178,0.77292689,940.44,939.04,2.6442507]
[1768405674375,0.77292689,940.43,939.04,2.6442507]
[1768405674574,0.77292689,940.42,939.04,2.6442507]
[1768405674777,1.605,940.56,939.04,2.6442507]
[1768405675077,0.76908685,940.55,939.04,2.6442507]
[1768405675272,0.76908685,940.54,939.04,2.6442507]
[1768405675572,0.76908685,940.53,939.03,2.6442507]
[1768405675778,0.76908685,940.52,939.03,2.6442507]
[1768405675972,0.76908685,940.51,939.03,2.6442507]
[1768405676171,0.76908685,940.5,939.03,2.6442507]
[1768405676378,0.76908685,940.49,939.03,2.6442507]
[1768405676578,0.76908685,940.48,939.03,2.6442507]
[1768405676773,0.76908685,940.47,939.03,2.6442507]
[1768405676978,0.76908685,940.46,939.03,2.6442507]
[1768405677180,0.76908685,940.45,939.03,2.6442507]
[1768405677379,0.76908685,940.44,939.03,2.6442507]
[1768405677574,1.605,940.56,939.02,2.6442507]
[1768405677778,0.76883422,940.55,939.02,2.6442507]
[1768405677976,0.76883422,940.54,939.02,2.6442507]
[1768405678181,0.76883422,940.53,939.02,2.6442507]
[1768405678479,0.76883422,940.52,939.02,2.6442507]
[1768405678779,0.76883422,940.51,939.02,2.6442507]
[1768405678978,0.76883422,940.5,939.04,2.6442507]
[1768405679182,0.76883422,940.49,939.04,2.6442507]
[1768405679380,0.76883422,940.48,939.04,2.6442507]
[1768405679579,0.76883422,940.47,939.03,2.6442507]
[1768405679781,0.76883422,940.46,939.03,2.6442507]
[1768405679981,1.605,940.56,939.03,2.6442507]
[1768405680182,0.76868112,940.55,939.04,2.6442507]
[1768405680382,0.76868112,940.54,939.04,2.6442507]
[1768405680583,0.76868112,940.53,939.03,2.6442507]
[1768405680881,0.76868112,940.52,939.03,2.6442507]
[1768405681082,0.76868112,940.51,939.03,2.6442507]
[1768405681281,0.76868112,940.5,939.03,2.6442507]
[1768405681481,0.76868112,940.49,939.03,2.6442507]
[1768405681781,0.76868112,940.48,939.03,2.6442507]
[1768405681982,0.76868112,940.47,939.03,2.6442507]
[1768405682184,1.605,940.56,939.03,2.6442507]
[1768405682381,0.76850293,940.55,939.03,2.6442507]
[1768405682586,0.76850293,940.54,939.03,2.6442507]
[1768405682886,0.76850293,940.53,939.06,2.6442507]
[1768405683084,1.605,940.56,939.06,2.6442507]
[1768405683387,1.605,940.56,939.09,2.6442507]
[1768405683786,1.605,940.56,939.15,2.6442507]
[1768405684184,1.605,940.56,939.14,2.6442507]
[1768405684684,1.605,940.56,939.15,2.6442507]
[1768405685288,0.7684119,940.55,939.09,2.6442507]
[1768405685487,0.7684119,940.54,939.09,2.6442507]
[1768405685784,1.605,940.56,939.1,2.6442507]
[1768405685988,0.76841329,940.55,939.1,2.6442507]
[1768405686189,0.76841329,940.54,939.1,2.6442507]
[1768405686486,1.605,940.56,939.09,2.6442507]
[1768405686788,0.76839502,940.55,939.09,2.6442507]
[1768405686986,0.76839502,940.54,939.09,2.6442507]
[1768405687289,1.605,940.56,939.09,2.6442507]
[1768405687487,0.76839995,940.55,939.09,2.6442507]
[1768405687689,0.76839995,940.54,939.09,2.6442507]
[1768405687885,1.605,940.56,939.09,2.6442507]
[1768405688084,0.7684019,940.55,939.09,2.6442507]
[1768405688293,0.7684019,940.54,939.09,2.6442507]
[1768405688490,1.605,940.56,939.09,2.6442507]
[1768405688789,0.76842088,940.55,939.09,2.6442507]
[1768405688986,0.76842088,940.54,939.08,2.6442507]
[1768405689190,0.76842088,940.53,939.08,2.6442507]
[1768405689390,1.605,940.56,939.06,2.6442507]
[1768405689790,0.7684405,940.55,939.06,2.6442507]
[1768405689991,0.7684405,940.54,939.06,2.6442507]
[1768405690286,0.7684405,940.53,939.06,2.6442507]
[1768405690491,0.7684405,940.52,939.07,2.6442507]
[1768405690791,0.7684405,940.51,939.07,2.6442507]
[1768405690990,0.7684405,940.5,939.07,2.6442507]
[1768405691191,1.605,940.56,939.07,2.6442507]
[1768405691490,0.76874998,940.55,939.08,2.6442507]
[1768405691790,0.76874998,940.54,939.08,2.6442507]
[1768405691991,0.76874998,940.53,939.08,2.6442507]
[1768405692184,0.76874998,940.52,939.08,2.6442507]
[1768405692386,0.76874998,940.51,938.98,2.6442507]
[1768405692586,0.76874998,940.5,938.98,2.6442507]
[1768405692790,0.76874998,940.49,938.98,2.6442507]
[1768405692991,0.76874998,940.48,938.98,2.6442507]
[1768405693187,0.76874998,940.47,938.98,2.6442507]
[1768405693391,0.76874998,940.46,938.98,2.6442507]
[1768405693691,0.76874998,940.45,938.98,2.6442507]
[1768405693890,0.76874998,940.44,938.96,2.6442507]
[1768405694091,0.76874998,940.43,938.96,2.6442507]
[1768405694291,0.76874998,940.42,938.96,2.6442507]
[1768405694589,0.76874998,940.41,938.96,2.6442507]
[1768405694790,0.76874998,940.4,938.96,2.6442507]
[1768405694990,0.76874998,940.39,938.96,2.6442507]
[1768405695192,0.76874998,940.38,938.96,2.6442507]
[1768405695492,0.76874998,940.37,938.97,2.6442507]
[1768405695688,0.7694348,940.36,938.97,2.6442507]
[1768405695990,0.7694348,940.35,938.97,2.6442507]
[1768405696192,0.7694348,940.34,938.97,2.6442507]
[1768405696491,0.7694348,940.33,938.98,2.6442507]
[1768405696691,1.211,940.38,938.98,2.6442507]
[1768405696892,0.76963456,940.37,938.98,2.6442507]
[1768405697089,0.76963456,940.36,939.01,2.6442507]
[1768405697292,0.76963456,940.35,939.01,2.6442507]
[1768405697493,0.76963456,940.34,939.03,2.6442507]
[1768405697691,0.76963456,940.33,939.03,2.6442507]
[1768405697993,0.76990739,940.32,939.01,2.6442507]
[1768405698192,0.77022264,940.31,939.01,2.6442507]
[1768405698396,0.77022264,940.3,939.01,2.6442507]
[1768405698596,0.77022264,940.29,939.02,2.6442507]
[1768405698791,1.211,940.38,939.02,2.6442507]
[1768405698997,0.77022795,940.37,939.02,2.6442507]
[1768405699192,0.77022795,940.36,939.02,2.6442507]
[1768405699397,0.77022795,940.35,939.02,2.6442507]
[1768405699593,0.77022795,940.34,939.02,2.6442507]
[1768405699897,0.77022795,940.33,939.02,2.6442507]
[1768405700098,0.77022795,940.32,939.02,2.6442507]
[1768405700292,0.77022795,940.31,939.02,2.6442507]
[1768405700498,0.77022795,940.3,939.02,2.6442507]
[1768405700698,0.77022795,940.29,939.03,2.6442507]
[1768405700899,0.77022795,940.28,939.03,2.6442507]
[1768405701095,0.77022795,940.27,939.06,2.6442507]
[1768405701298,0.77022795,940.26,939.06,2.6442507]
[1768405701494,0.77022795,940.25,939.06,2.6442507]
[1768405701693,0.77022795,940.24,939.08,2.6442507]
[1768405701894,0.77022795,940.23,939.08,2.6442507]
[1768405702094,1.211,940.38,939.08,2.6442507]
[1768405702298,0.77161538,940.37,939.14,2.6442507]
[1768405702494,0.77161538,940.36,939.14,2.6442507]
[1768405702696,0.77161538,940.35,939.17,2.6442507]
[1768405702898,0.77161538,940.34,939.17,2.6442507]
[1768405703098,0.77161538,940.33,939.17,2.6442507]
[1768405703298,0.77161538,940.32,939.18,2.6442507]
[1768405703500,0.77161538,940.31,939.18,2.6442507]
[1768405703699,0.77161538,940.3,939.18,2.6442507]
[1768405703903,0.77161538,940.29,939.18,2.6442507]
[1768405704102,0.77161538,940.28,939.18,2.6442507]
[1768405704303,0.77161538,940.27,939.18,2.6442507]
[1768405704504,0.77161538,940.26,939.18,2.6442507]
[1768405704705,1.211,940.38,939.18,2.6442507]
[1768405704900,0.77027087,940.37,939.28,2.6442507]
[1768405705105,0.77027087,940.36,939.28,2.6442507]
[1768405705303,0.77027087,940.35,939.28,2.6442507]
[1768405705504,1.211,940.38,939.28,2.6442507]
[1768405705805,0.77029182,940.37,939.28,2.6442507]
[1768405706007,0.77029182,940.36,939.28,2.6442507]
[1768405706207,0.77029182,940.35,939.28,2.6442507]
[1768405706503,1.211,940.38,939.28,2.6442507]
[1768405706707,0.77030461,940.37,939.28,2.6442507]
[1768405706905,1.211,940.38,939.32,2.6442507]
[1768405707302,1.211,940.38,939.42,2.6442507]
[1768405708910,1.211,940.38,939.44,2.6442507]
[1768405710507,1.211,940.38,939.43,2.6442507]
[1768405711711,1.211,940.38,939.44,2.6442507]
[1768405712611,1.211,940.38,939.43,2.6442507]
[1768405714713,1.211,940.38,939.44,2.6442507]
[1768405715108,1.211,940.38,939.45,2.6442507]
[1768405715708,1.211,940.38,939.44,2.6442507]
[1768405716609,0.1905512,940.38,939.53,2.6442507]
[1768405717916,0.1905512,940.38,939.49,2.6442507]
[1768405718817,0.1905512,940.38,939.48,2.6442507]
[1768405719312,0.1905512,940.38,939.47,2.6442507]
[1768405720316,0.1905512,940.38,939.46,2.6442507]
[1768405721517,0.1905512,940.38,939.43,2.6442507]
[1768405722020,0.1905512,940.38,939.29,2.6442507]
[1768405722518,0.1905512,940.38,939.21,2.6442507]
[1768405723619,0.1905512,940.38,939.23,2.6442507]
[1768405724520,0.1905512,940.38,939.3,2.6442507]
[1768405725220,0.1905512,940.38,939.29,2.6442507]
[1768405726119,0.1905512,940.38,939.2,2.6442507]
[1768405726622,0.1905512,940.38,939.19,2.6442507]
[1768405727822,0.1905512,940.38,939.16,2.6442507]
[1768405730325,0.1905512,940.38,939.17,2.6442507]
[1768405730724,0.1905512,940.38,939.15,2.6442507]
[1768405731622,0.7683635,940.37,939.15,2.6442507]
[1768405731828,0.1905512,940.38,939.1,2.6442507]
[1768405732627,0.00824288,941.31,939.1,2.6442507]
[1768405732923,0.76837928,941.3,939.1,2.6442507]
[1768405733122,0.76837928,941.29,939.1,2.6442507]
[1768405733423,0.76837928,941.28,939.09,2.6442507]
[1768405733628,0.76837928,941.27,939.09,2.6442507]
[1768405733822,0.76837928,941.26,939.09,2.6442507]
[1768405734026,0.76837928,941.25,939.09,2.6442507]
[1768405734229,0.76837928,941.24,939.09,2.6442507]
[1768405734428,0.76837928,941.23,939.07,2.6442507]
[1768405734624,0.76837928,941.22,939.07,2.6442507]
[1768405734827,0.76837928,941.21,939.07,2.6442507]
[1768405735025,0.76837928,941.2,939.08,2.6442507]
[1768405735229,0.76837928,941.19,939.08,2.6442507]
[1768405735430,0.76837928,941.18,939.08,2.6442507]
[1768405735628,0.76837928,941.17,939.08,2.6442507]
[1768405735829,0.76837928,941.16,939.08,2.6442507]
[1768405736132,0.76837928,941.15,939.08,2.6442507]
[1768405736327,0.76837928,941.14,939.08,2.6442507]
[1768405736531,0.76837928,941.13,939.08,2.6442507]
[1768405736731,0.76837928,941.12,939.08,2.6442507]
[1768405736931,0.76837928,941.11,939.08,2.6442507]
[1768405737234,0.76837928,941.1,939.08,2.6442507]
[1768405737434,0.76837928,941.09,939.08,2.6442507]
[1768405737628,0.76837928,941.08,939.16,2.6442507]
[1768405737927,0.76837928,941.07,939.16,2.6442507]
[1768405738127,0.76837928,941.06,939.24,2.6442507]
[1768405738429,0.76837928,941.05,939.24,2.6442507]
[1768405738733,0.76837928,941.04,939.28,2.6442507]
[1768405739030,0.76837928,941.03,939.28,2.6442507]
[1768405739229,0.76837928,941.02,939.28,2.6442507]
[1768405739430,0.76837928,941.01,939.28,2.6442507]
[1768405739630,0.76837928,941.0,939.28,2.6442507]
[1768405739834,0.76837928,940.99,939.28,2.6442507]
[1768405740032,0.76837928,940.98,939.28,2.6442507]
[1768405740233,0.76837928,940.97,939.28,2.6442507]
[1768405740430,0.76837928,940.96,939.28,2.6442507]
[1768405740729,0.76837928,940.95,939.28,2.6442507]
[1768405741029,0.76837928,940.94,939.28,2.6442507]
[1768405741328,1.558,941.15,939.28,2.6442507]
[1768405741329,0.76837928,940.93,939.28,2.6442507]
[1768405741527,0.76837928,940.92,939.28,2.6442507]
[1768405741732,0.76837928,940.91,939.29,2.6442507]
[1768405741933,0.76837928,940.9,939.29,2.6442507]
[1768405742132,0.76837928,940.89,939.29,2.6442507]
[1768405742332,0.76837928,940.88,939.29,2.6442507]
[1768405742535,0.76837928,940.87,939.29,2.6442507]
[1768405742732,0.76837928,940.86,939.26,2.6442507]
[1768405742932,0.76837928,940.85,939.26,2.6442507]
[1768405743135,0.76837928,940.84,939.26,2.6442507]
[1768405743331,0.76837928,940.83,939.26,2.6442507]
[1768405743634,0.76837928,940.82,939.26,2.6442507]
[1768405743835,0.76837928,940.81,939.27,2.6442507]
[1768405744137,0.76837928,940.8,939.27,2.6442507]
[1768405744335,0.76837928,940.79,939.27,2.6442507]
[1768405744532,0.76837928,940.78,939.27,2.6442507]
[1768405744732,0.76837928,940.77,939.27,2.6442507]
[1768405744935,0.76837928,940.76,939.28,2.6442507]
[1768405745136,0.76837928,940.75,939.28,2.6442507]
[1768405745333,0.76837928,940.74,939.29,2.6442507]
[1768405745534,0.76837928,940.73,939.29,2.6442507]
[1768405745733,0.76837928,940.72,939.29,2.6442507]
[1768405745934,0.76837928,940.72,938.94,3.7019509]
[1768405745935,0.76837928,940.71,939.32,2.6442507]
[1768405746137,0.76837928,940.7,939.32,2.6442507]
[1768405746337,0.76837928,940.69,939.32,2.6442507]
[1768405746637,0.76837928,940.68,939.36,2.6442507]
[1768405746836,0.76837928,940.67,939.36,2.6442507]
[1768405747038,0.76837928,940.66,939.36,2.6442507]
[1768405747338,0.76837928,940.65,939.36,2.6442507]
[1768405747531,0.76837928,940.64,939.36,2.6442507]
[1768405747736,0.76837928,940.63,939.36,2.6442507]
[1768405747934,0.76837928,940.62,939.36,2.6442507]
[1768405748235,0.76837928,940.61,939.36,2.6442507]
[1768405748439,0.76837928,940.6,939.37,2.6442507]
[1768405748640,0.76837928,940.59,939.37,2.6442507]
[1768405748935,0.76837928,940.58,939.37,2.6442507]
[1768405749238,0.76837928,940.57,939.37,2.6442507]
[1768405749439,0.76837928,940.56,939.37,2.6442507]
[1768405749637,0.76837928,940.55,939.37,2.6442507]
[1768405749835,0.76837928,940.54,939.37,2.6442507]
[1768405750244,0.18491164,942.11,939.37,2.6442507]
[1768405750543,0.01079006,941.48,939.36,2.6442507]
[1768405751042,0.18491164,942.11,939.35,2.6442507]
[1768405751643,0.18491164,942.11,939.34,2.6442507]
[1768405752045,0.18491164,942.11,939.43,2.6442507]
[1768405752442,1.575,942.1,939.43,2.6442507]
[1768405752646,0.76688176,942.09,939.49,2.6442507]
[1768405752846,0.76688176,942.08,939.49,2.6442507]
[1768405753048,0.76688176,942.07,939.5,2.6442507]
[1768405753248,0.76688176,942.06,939.5,2.6442507]
[1768405753545,0.76688176,942.05,939.5,2.6442507]
[1768405753748,0.76688176,942.04,939.48,2.6442507]
[1768405753949,0.76688176,942.03,939.48,2.6442507]
[1768405754146,0.76688176,942.02,939.48,2.6442507]
[1768405754350,0.76688176,942.01,939.48,2.6442507]
[1768405754650,0.76688176,942.0,939.48,2.6442507]
[1768405754849,0.76688176,941.99,939.48,2.6442507]
[1768405755050,0.76688176,941.98,939.48,2.6442507]
[1768405755249,0.76688176,941.97,939.47,2.6442507]
[1768405755455,0.76688176,941.96,939.47,2.6442507]
[1768405755754,0.76688176,941.95,939.47,2.6442507]
[1768405755954,0.76688176,941.94,939.47,2.6442507]
[1768405756150,0.76688176,941.93,939.47,2.6442507]
[1768405756452,0.76688176,941.92,939.47,2.6442507]
[1768405756754,0.76688176,941.91,939.47,2.6442507]
[1768405757054,0.76688176,941.9,939.47,2.6442507]
[1768405757254,0.76688176,941.89,939.44,2.6442507]
[1768405757552,0.76688176,941.88,939.44,2.6442507]
[1768405757854,0.76688176,941.87,939.44,2.6442507]
[1768405758051,0.76688176,941.86,939.44,2.6442507]
[1768405758251,0.76688176,941.85,939.44,2.6442507]
[1768405758555,0.76688176,941.84,939.44,2.6442507]
[1768405758749,0.76688176,941.83,939.44,2.6442507]
[1768405759055,0.76688176,941.82,939.44,2.6442507]
[1768405759354,0.76688176,941.81,939.44,2.6442507]
[1768405759554,0.76688176,941.8,939.44,2.6442507]
[1768405759852,0.76688176,941.79,939.44,2.6442507]
[1768405760051,0.76688176,941.78,939.44,2.6442507]
[1768405760254,0.76688176,941.77,939.44,2.6442507]
[1768405760549,0.76688176,941.76,939.44,2.6442507]
[1768405760749,0.76688176,941.75,939.44,2.6442507]
[1768405760953,0.76688176,941.74,939.44,2.6442507]
[1768405761155,0.76688176,941.73,939.44,2.6442507]
[1768405761355,0.76688176,941.72,939.39,2.6442507]
[1768405761654,0.76688176,941.71,939.39,2.6442507]
[1768405761854,0.76688176,941.7,939.39,2.6442507]
[1768405762054,0.76688176,941.69,939.39,2.6442507]
[1768405762254,0.76688176,941.68,939.39,2.6442507]
[1768405762452,0.76688176,941.67,939.4,2.6442507]
[1768405762654,0.76688176,941.66,939.4,2.6442507]
[1768405762856,0.76688176,941.65,939.4,2.6442507]
[1768405763056,0.76688176,941.64,939.34,2.6442507]
[1768405763252,1.575,942.1,939.34,2.6442507]
[1768405763253,0.76688176,941.63,939.34,2.6442507]
[1768405763455,0.76688176,941.62,939.35,2.6442507]
[1768405763655,0.76688176,941.61,939.35,2.6442507]
[1768405763952,0.76688176,941.6,939.35,2.6442507]
[1768405764253,0.76688176,941.59,939.35,2.6442507]
[1768405764452,0.76688176,941.58,939.35,2.6442507]
[1768405764652,0.76688176,941.57,939.35,2.6442507]
[1768405764950,0.76688176,941.56,939.35,2.6442507]
[1768405765153,0.76688176,941.55,939.35,2.6442507]
[1768405765354,0.76688176,941.54,939.35,2.6442507]
[1768405765552,0.76688176,941.53,939.36,2.6442507]
[1768405765755,0.76688176,941.52,939.36,2.6442507]
[1768405765955,0.76688176,941.51,939.35,2.6442507]
[1768405766159,0.76688176,941.5,939.35,2.6442507]
[1768405766360,0.76688176,941.49,939.35,2.6442507]
[1768405766559,0.76688176,941.48,939.35,2.6442507]
[1768405766760,0.76688176,941.47,939.35,2.6442507]
[1768405767058,0.76688176,941.46,939.35,2.6442507]
[1768405767258,0.76688176,941.45,939.35,2.6442507]
[1768405767459,0.76688176,941.44,939.35,2.6442507]
[1768405767660,0.76688176,941.43,939.35,2.6442507]
[1768405767859,0.76688176,941.42,939.35,2.6442507]
[1768405768061,0.76688176,941.41,939.31,2.6442507]
[1768405768260,0.76688176,941.4,939.31,2.6442507]
[1768405768558,0.76688176,941.39,939.39,2.6442507]
[1768405768856,0.76688176,941.38,939.39,2.6442507]
[1768405769061,0.76688176,941.37,939.39,2.6442507]
[1768405769257,0.76688176,941.36,939.39,2.6442507]
[1768405769561,0.76688176,941.35,939.39,2.6442507]
[1768405769758,0.76688176,941.34,939.39,2.6442507]
[1768405769958,0.76688176,941.33,939.39,2.6442507]
[1768405770160,0.76688176,941.32,939.39,2.6442507]
[1768405770362,0.76688176,941.31,939.39,2.6442507]
[1768405770658,0.76688176,941.3,939.39,2.6442507]
[1768405770859,0.76688176,941.29,939.39,2.6442507]
[1768405771160,0.76688176,941.28,939.37,2.6442507]
[1768405771358,0.76688176,941.27,939.37,2.6442507]
[1768405771560,0.76688176,941.26,939.37,2.6442507]
[1768405771758,0.76688176,941.25,939.3,2.6442507]
[1768405771958,0.76688176,941.24,939.3,2.6442507]
[1768405772159,0.18491164,942.11,939.3,2.6442507]
[1768405772160,0.76688176,941.23,939.3,2.6442507]
[1768405772364,0.76688176,941.22,939.3,2.6442507]
[1768405772565,0.76688176,941.21,939.3,2.6442507]
[1768405772862,0.76688176,941.2,939.3,2.6442507]
[1768405773060,0.76688176,941.19,939.3,2.6442507]
[1768405773260,0.76688176,941.18,939.3,2.6442507]
[1768405773466,0.76688176,941.17,939.3,2.6442507]
[1768405773664,0.76688176,941.16,939.3,2.6442507]
[1768405773864,0.76688176,941.15,939.3,2.6442507]
[1768405774162,0.76688176,941.14,939.3,2.6442507]
[1768405774362,0.76688176,941.13,939.3,2.6442507]
[1768405774566,0.76688176,941.12,939.3,2.6442507]
[1768405774761,0.76688176,941.11,939.3,2.6442507]
[1768405775062,0.76688176,941.1,939.3,2.6442507]
[1768405775263,0.76688176,941.09,939.33,2.6442507]
[1768405775460,0.76688176,941.08,939.33,2.6442507]
[1768405775666,0.76688176,941.07,939.33,2.6442507]
[1768405775867,0.76688176,941.06,939.33,2.6442507]
[1768405776062,0.76688176,941.05,939.33,2.6442507]
[1768405776265,0.76688176,941.04,939.33,2.6442507]
[1768405776466,0.76688176,941.03,939.33,2.6442507]
[1768405776662,0.76688176,941.02,939.33,2.6442507]
[1768405776867,0.76688176,941.01,939.33,2.6442507]
[1768405777065,0.76688176,941.0,939.33,2.6442507]
[1768405777366,0.76688176,940.99,939.34,2.6442507]
[1768405777562,0.76688176,940.98,939.34,2.6442507]
[1768405777767,0.76688176,940.97,939.34,2.6442507]
[1768405778067,0.76688176,940.96,939.34,2.6442507]
[1768405778267,0.76688176,940.95,939.34,2.6442507]
[1768405778462,0.76688176,940.94,939.34,2.6442507]
[1768405778663,0.76688176,940.93,939.34,2.6442507]
[1768405778864,0.76688176,940.92,939.34,2.6442507]
[1768405779065,0.76688176,940.91,939.34,2.6442507]
[1768405779268,0.76688176,940.9,939.34,2.6442507]
[1768405779469,0.76688176,940.89,939.34,2.6442507]
[1768405779667,0.76688176,940.88,939.34,2.6442507]
[1768405779866,0.76688176,940.87,939.34,2.6442507]
[1768405780065,0.76688176,940.86,939.34,2.6442507]
[1768405780267,0.76688176,940.85,939.34,2.6442507]
[1768405780464,0.76688176,940.84,939.35,2.6442507]
[1768405780664,0.76688176,940.83,939.35,2.6442507]
[1768405780866,0.76688176,940.82,939.35,2.6442507]
[1768405781167,0.76688176,940.81,939.35,2.6442507]
[1768405781367,0.76688176,940.8,939.35,2.6442507]
[1768405781564,0.76688176,940.79,939.35,2.6442507]
[1768405781764,0.76688176,940.78,939.35,2.6442507]
[1768405781969,0.76688176,940.77,939.35,2.6442507]
[1768405782164,0.76688176,940.76,939.35,2.6442507]
[1768405782368,0.76688176,940.75,939.35,2.6442507]
[1768405782570,0.76688176,940.74,939.36,2.6442507]
[1768405782765,0.76688176,940.73,939.36,2.6442507]
[1768405782963,0.76688176,940.72,939.36,2.6442507]
[1768405783269,0.76688176,940.71,939.45,2.6442507]
[1768405783466,0.76688176,940.7,939.45,2.6442507]
[1768405783666,0.76688176,940.69,939.45,2.6442507]
[1768405783873,0.76688176,940.68,939.45,2.6442507]
[1768405784069,0.76688176,940.67,939.45,2.6442507]
[1768405784369,0.76688176,940.66,939.45,2.6442507]
[1768405784565,0.76688176,940.65,939.45,2.6442507]
[1768405784869,0.76688176,940.64,939.45,2.6442507]
[1768405785066,0.76688176,940.63,939.45,2.6442507]
[1768405785268,0.76688176,940.62,939.45,2.6442507]
[1768405785565,0.76688176,940.61,939.45,2.6442507]
[1768405785869,0.76688176,940.6,939.45,2.6442507]
[1768405786064,0.76688176,940.59,939.45,2.6442507]
[1768405786267,0.76688176,940.58,939.45,2.6442507]
[1768405786465,0.76688176,940.57,939.45,2.6442507]
[1768405786665,1.043,941.12,939.45,2.6442507]
[1768405786666,0.76688176,940.56,939.45,2.6442507]
[1768405786863,0.76688176,940.55,939.45,2.6442507]
[1768405787069,0.76688176,940.54,939.45,2.6442507]
[1768405787266,0.76688176,940.53,939.45,2.6442507]
[1768405787466,0.76688176,940.52,939.45,2.6442507]
[1768405787770,0.76699854,940.51,939.45,2.6442507]
[1768405787969,0.76699854,940.5,939.45,2.6442507]
[1768405788169,0.76699854,940.49,939.45,2.6442507]
[1768405788366,0.76699854,940.48,939.45,2.6442507]
[1768405788670,0.76699854,940.47,939.45,2.6442507]
[1768405788969,1.043,941.12,939.45,2.6442507]
[1768405789166,0.76700744,941.11,939.45,2.6442507]
[1768405789369,0.76700744,941.1,939.45,2.6442507]
[1768405789569,0.76700744,941.09,939.45,2.6442507]
[1768405789870,0.76700744,941.08,939.47,2.6442507]
[1768405790070,0.76700744,941.07,939.47,2.6442507]
[1768405790269,0.76700744,941.06,939.47,2.6442507]
[1768405790471,0.76700744,941.05,939.47,2.6442507]
[1768405790667,0.76700744,941.04,939.47,2.6442507]
[1768405790868,0.76700744,941.03,939.47,2.6442507]
[1768405791071,0.76700744,941.02,939.47,2.6442507]
[1768405791271,1.043,941.12,939.47,2.6442507]
[1768405791272,0.76700744,941.01,939.47,2.6442507]
[1768405791569,0.76700744,941.0,939.47,2.6442507]
[1768405791771,0.76700744,940.99,939.47,2.6442507]
[1768405791968,0.76700744,940.98,939.47,2.6442507]
[1768405792274,0.76700744,940.97,939.47,2.6442507]
[1768405792473,0.76700744,940.96,939.47,2.6442507]
[1768405792769,0.76700744,940.95,939.47,2.6442507]
[1768405792969,0.76700744,940.94,939.47,2.6442507]
[1768405793173,0.76700744,940.93,939.47,2.6442507]
[1768405793373,0.76700744,940.92,939.47,2.6442507]
[1768405793572,0.76700744,940.91,939.47,2.6442507]
[1768405793769,0.76700744,940.9,939.47,2.6442507]
[1768405794069,1.043,941.12,939.47,2.6442507]
[1768405794070,0.76700744,940.89,939.47,2.6442507]
[1768405794273,0.76700744,940.88,939.47,2.6442507]
[1768405794468,0.76700744,940.87,939.45,2.6442507]
[1768405794668,0.76700744,940.86,939.45,2.6442507]
[1768405794873,0.76700744,940.85,939.45,2.6442507]
[1768405795073,0.76700744,940.84,939.45,2.6442507]
[1768405795274,0.76700744,940.83,939.45,2.6442507]
[1768405795471,0.76700744,940.82,939.45,2.6442507]
[1768405795773,0.76700744,940.81,939.45,2.6442507]
[1768405795977,0.76700744,940.8,939.45,2.6442507]
[1768405796275,0.76700744,940.79,939.45,2.6442507]
[1768405796476,0.76700744,940.78,939.45,2.6442507]
[1768405796672,0.76700744,940.77,939.45,2.6442507]
[1768405796975,0.76700744,940.76,939.45,2.6442507]
[1768405797173,0.76700744,940.75,939.45,2.6442507]
[1768405797376,0.76700744,940.74,939.45,2.6442507]
[1768405797672,0.76700744,940.73,939.45,2.6442507]
[1768405797973,0.76700744,940.72,939.07,0.18494505]
[1768405798273,0.76700744,940.71,939.07,0.18494505]
[1768405798475,0.76700744,940.7,939.07,0.18494505]
[1768405798673,0.76700744,940.69,939.07,0.18494505]
[1768405798877,0.76700744,940.68,939.07,0.18494505]
[1768405799072,0.76700744,940.67,939.12,3.7015553]
[1768405799273,0.76700744,940.66,939.12,3.7015553]
[1768405799478,0.76700744,940.65,939.46,2.6439681]
[1768405799673,0.76700744,940.64,939.46,2.6439681]
[1768405799974,0.76700744,940.63,939.46,2.6439681]
[1768405800278,0.76700744,940.62,939.47,2.6439681]
[1768405800578,0.76700744,940.61,939.47,2.6439681]
[1768405800777,0.76700744,940.6,939.47,2.6439681]
[1768405800976,0.76700744,940.59,939.47,2.6439681]
[1768405801175,0.76700744,940.58,939.47,2.6439681]
[1768405801376,0.76700744,940.57,939.48,2.6439681]
[1768405801575,0.76700744,940.56,939.48,2.6439681]
[1768405801878,0.76700744,940.55,939.48,2.6439681]
[1768405802077,1.043,941.12,939.48,2.6439681]
[1768405802373,0.76708301,941.11,939.62,2.6439681]
[1768405802577,0.76708301,941.1,939.62,2.6439681]
[1768405802773,0.76708301,941.09,939.62,2.6439681]